Cogmind - Beta 13 @@@ ROGUE MODE // 2024.07.08 @ 11:49:31 Player: ThatBishHoly Result: Destroyed by S-10 Pest with Light Assault Rifle Performance ------------- Evolutions (0) 0 Regions Visited (1) 200 Robots Destroyed (15) 75 Value Destroyed (341) 341 Prototype IDs (0) 0 Alien Tech Used (0) 0 Bonus (0) 0 TOTAL SCORE: 616 Bonus ------- None Cogmind --------- Core Integrity 0/250 Matter 189/300 Energy 100/100 System Corruption 0% Temperature Cool (0) Movement Core (400) Ox7 Location -10/Materials Parts ------- > --- POWER (1) -------- (None) > --- PROPULSION (2) --- (None) > --- UTILITY (2) ------ Large Storage Unit > --- WEAPON (2) ------- Hammer > --- INVENTORY (15) --- High-capacity Storage Unit Light Armor Plating Assault Rifle Assault Rifle Mining Claw Mining Claw Peak State ------------ > --- POWER ------------ Ion Engine > --- PROPULSION ------- Light Treads Light Treads > --- UTILITY ---------- Large Storage Unit Tractor Beam > --- WEAPON ----------- Assault Rifle Light Assault Rifle > --- INVENTORY -------- Small Storage Unit Mining Claw [Rating: 7] Favorites ----------- Power Ion Engine Engine Ion Engine Propulsion Light Treads Treads Light Treads Leg Aluminum Leg Utility Large Storage Unit Device Tractor Beam Storage Large Storage Unit Protection Light Armor Plating Weapon Hammer Ballistic Gun Assault Rifle Launcher Grenade Launcher Impact Weapon Hammer Build | -11 -10 ------- Run | Yrd Mat Slots Evolved . | . . Power . | . . Propulsion . | . . Utility . | . . Weapon . | . . Parts Attached 17 | 7 10 Power 1 | 1 . Engine 1 | 1 . Core . | . . Reactor . | . . Propulsion 5 | 3 2 Treads 2 | 2 . Leg 3 | 1 2 Wheel . | . . Hover . | . . Flight . | . . Utility 5 | 1 4 Device 1 | . 1 Storage 2 | 1 1 Processor . | . . Hackware . | . . Protection 2 | . 2 Artifact . | . . Weapon 6 | 2 4 Energy Gun . | . . Energy Cannon . | . . Ballistic Gun 2 | 2 . Ballistic Cannon . | . . Launcher 2 | . 2 Special Weapon . | . . Impact Weapon 2 | . 2 Slashing Weapon . | . . Piercing Weapon . | . . Special Melee Weapon . | . . Unidentified Prototypes . | . . Parts Lost 4 | . 4 Power 1 | . 1 Propulsion . | . . Utility 2 | . 2 Weapon 1 | . 1 Highest Loss Streak 2 | . 2 To Critical Strikes . | . . Average Slot Usage (%) 77 | . 77 Engine 6 | . 6 Treads 9 | . 9 Leg 8 | . 8 Storage 14 | . 14 Protection 10 | . 10 Ballistic Gun 10 | . 10 Launcher 8 | . 8 Impact Weapon 8 | . 8 Naked Turns . | . . Heaviest Build 33 | 13 33 Greatest Support 40 | 40 40 Greatest Overweight (x) 9 | . 9 Average Overweight (x) 1 | . 2 Largest Inventory Capacity 15 | 8 15 Average Capacity 13 | 7 14 Most Carried 9 | 5 9 Average Carried 3 | . 4 Final Capacity 15 | 8 15 Final Carried 6 | . 6 Class Distribution -------------------- 100% | Mutant Dominant Class ---------------- Mutant | -10/Materials Resources | -11 -10 ----------- Run | Yrd Mat Matter Collected 461 | 166 295 Remotely 38 | . 38 Salvage Created 361 | . 361 Parts 24 | . 24 Haulers Intercepted . | . . Recyclers Shooed . | . . Parts Field Recycled . | . . Retrieved Matter . | . . Parts Self-Destructed . | . . Prevented . | . . Kills | -11 -10 ------- Run | Yrd Mat Combat Hostiles Destroyed 11 | . 11 Guns 8 | . 8 AOE 3 | . 3 Classes Destroyed 5 | . 5 Builder 1 | . 1 Recycler 1 | . 1 Watcher 2 | . 2 Swarmer 4 | . 4 Grunt 7 | . 7 Best Kill Streak 4 | . 4 Combat Bots Only 3 | . 3 Max Kills in Single Turn 1 | . 1 Gunslinging . | . . Exploded 1 | . 1 Melee . | . . Uniques/NPCs Destroyed . | . . Combat | -11 -10 -------- Run | Yrd Mat Hostile Shots Fired 112 | . 112 Missed 29 | . 29 Damage Taken 912 | . 912 Core 258 | . 258 Absorbed by Shields . | . . Core Remaining (%) 100 | 100 . Volleys Fired 39 | . 39 Largest 2 | . 2 Hottest 40 | . 40 Shots Fired 67 | . 67 Gun 56 | . 56 Cannon . | . . Launcher 11 | . 11 Special . | . . Kinetic 56 | . 56 Thermal . | . . Explosive 11 | . 11 Electromagnetic . | . . Robot Hit Streak 8 | . 8 Robot Miss Streak 4 | . 4 Penetration Max . | . . Secondary Targets 1 | . 1 Max Gunslinging Chain 1 | . 1 Shots Hit Robots 41 | . 41 Core Hits 20 | . 20 Critical Kills . | . . Critical Parts Destroyed . | . . Critical Strikes . | . . Melee Attacks 3 | . 3 Impact 3 | . 3 Slashing . | . . Piercing . | . . Sneak Attacks 2 | . 2 Combat Hostiles . | . . Follow-up Attacks . | . . Damage Inflicted 861 | . 861 Guns 345 | . 345 Cannons . | . . Explosions 416 | . 416 Melee 100 | . 100 Ramming . | . . Kinetic 345 | . 345 Thermal . | . . Explosive 416 | . 416 Electromagnetic . | . . Impact 100 | . 100 Slashing . | . . Piercing . | . . Highest Corruption . | . . Average Corruption . | . . Corruption Purged . | . . Corruption Blocked . | . . Overload Shots . | . . Overflow Damage 50 | . 50 Projectiles . | . . Explosions 12 | . 12 Melee 38 | . 38 Knockbacks . | . . Impact . | . . Kinetic . | . . Secondary . | . . Self-Inflicted Damage 150 | . 150 Shots 7 | . 7 Rammed . | . . Targets Rammed 1 | . 1 Kicked . | . . Crushed 1 | . 1 Highest Temperature 24 | . 24 Average Temperature 8 | . 8 Received Heat Transfer 216 | . 216 Siege Activations . | . . Robots Corrupted . | . . Combat Hostiles . | . . Parts Fried 2 | . 2 Impact Corruptions 3 | . 3 Robots Melted . | . . Combat Hostiles . | . . Parts Melted . | . . Heat Transferred . | . . Parts Sabotaged . | . . Parts Stolen . | . . Parts Stripped . | . . Power Chain Reactions . | . . Alert | -11 -10 ------- Run | Yrd Mat Peak Influence 214 | . 214 Initial . | . . Average 55 | . 62 Maximum Alert Level 1 | . 1 Low Security (%) 99 | 100 99 Level 1 . | . . Level 2 . | . . Level 3 . | . . Level 4 . | . . Level 5 . | . . High Security . | . . Max Security . | . . Squads Dispatched 4 | . 4 Investigation 1 | . 1 Extermination . | . . Reinforcement 3 | . 3 Assault . | . . Garrison . | . . Intercept . | . . Searches Triggered . | . . Construction Impeded . | . . Haulers Reinforced . | . . Active Scanning Responses . | . . Cargo Convoy Interrupts . | . . Stealth | -11 -10 --------- Run | Yrd Mat Distress Signals . | . . Communications Jammed . | . . Distress Signals . | . . Times Spotted 18 | . 18 Peak Tracking Total 5 | . 5 Tactical Retreats . | . . Traps | -11 -10 ------- Run | Yrd Mat Traps Triggered 3 | . 3 Indirectly . | . . Trap Hack Attempts . | . . Triggered . | . . Disarmed . | . . Reprogrammed . | . . Reused . | . . Traps Extracted . | . . Installed . | . . Triggered . | . . Machines | -11 -10 ---------- Run | Yrd Mat Machines Disabled 2 | . 2 Max in Single Turn 1 | . 1 Machines Repaired . | . . Machines Dismantled . | . . Machines Sabotaged . | . . Overloaded Fab Kills . | . . Hacking | -11 -10 --------- Run | Yrd Mat Machines Accessed 2 | . 2 Terminals 2 | . 2 Fabricators . | . . Repair Stations . | . . Recycling Units . | . . Scanalyzers . | . . Garrison Access . | . . Total Hacks 4 | . 4 Successful 1 | . 1 Failed 3 | . 3 Catastrophic 1 | . 1 Database Lockouts . | . . Manual . | . . Terminals 4 | . 4 Fabricators . | . . Repair Stations . | . . Recycling Units . | . . Scanalyzers . | . . Garrison Access . | . . Terminal Hacks 1 | . 1 Locate Traps 1 | . 1 Fabricator Hacks . | . . Repair Station Hacks . | . . Recycling Unit Hacks . | . . Scanalyzer . | . . Garrison Access Hacks . | . . Unauthorized Hacks . | . . Terminals . | . . Fabricators . | . . Repair Stations . | . . Recycling Units . | . . Scanalyzers . | . . Garrison Access . | . . Data Cores Recovered . | . . Used . | . . Hacking Detections 1 | . 1 Full Trace Events 1 | . 1 Feedback Events . | . . Feedback Blocked . | . . Robot Schematics Acquired . | . . Robots Built . | . . Authchips . | . . Time . | . . Total Robot Build Rating . | . . Part Schematics Acquired . | . . Parts Built . | . . Authchips . | . . Time . | . . Total Part Build Rating . | . . Parts Repaired . | . . Time . | . . Parts Recycled . | . . Recycled Matter . | . . Retrieved Matter . | . . Retrieved Components . | . . Parts Scanalyzed . | . . Part Schematics Acquired . | . . Parts Damaged . | . . Bothacking | -11 -10 ------------ Run | Yrd Mat Used RIF Installer . | . . Robots Hacked . | . . Non-combat . | . . Combat . | . . Robot Hacks Applied . | . . Relay Couplers Released . | . . Fabnet Peak Effective % . | . . Robots Rewired . | . . Allies Hacked . | . . Hacks Repelled . | . . Allies | -11 -10 -------- Run | Yrd Mat Total Allies . | . . Largest Group . | . . Highest-Rated Group . | . . Highest-Rated Ally . | . . Total Orders . | . . Ally Attacks . | . . Total Damage . | . . Kills . | . . Allies Corrupted . | . . Allies Melted . | . . Intel | -11 -10 ------- Run | Yrd Mat Robot Analysis Total . | . . Derelict Logs Recovered . | . . Drone Launches . | . . Drone Recoveries . | . . Exploration | -11 -10 ------------- Run | Yrd Mat Turns Passed 1372 | 158 1214 Spaces Moved 554 | 100 454 Core 96 | 6 90 Treads 267 | 71 196 Legs 191 | 23 168 Wheels . | . . Hover . | . . Flight . | . . Fastest Speed 50 | 50 160 Average Speed 219 | 144 236 Slowest Speed 500 | 160 500 Overloaded Moves . | . . Propulsion Burnouts . | . . Robots Hopped . | . . Cave-ins Triggered . | . . Exploration Rate (%) 27 | 7 47 Regions Visited 1 Branch Regions . Pre-discovered Areas . | . . Known Exits Taken . | . . Unknown Exits Taken 1 | 1 . Scrap Searched . | . . Spaces Dug . | . . Terrain Destroyed 70 | . 70 Melee . | . . Projectile . | . . AOE 70 | . 70 Terrain Rammed . | . . Walls Destroyed . | . . Machines Disabled . | . . Actions | -11 -10 --------- Run | Yrd Mat Total 644 | 114 530 Wait 4 | . 4 Move 553 | 99 454 Hop . | . . Pick Up 22 | 7 15 Fast Attach . | . . Attach 12 | 7 5 Detach . | . . Swap 5 | . 5 Drop 5 | 1 4 Fire 39 | . 39 Melee 3 | . 3 Ram . | . . Kick . | . . Crush 1 | . 1 Escape Stasis . | . . Rewire . | . . Trap . | . . Miscellaneous . | . . Route ------- -11/Scrapyard -10/Materials (discovered 3 exits: [*Mat] / [*Min] / [*Sub]) History --------- Turn | Location | Event 11 | -11/Scrapyard | Discovered new exit (range 15) 159 | -11/Scrapyard | Entered Materials 303 | -10/Materials | Build established: Mutant 1012 | -10/Materials | Discovered new exit (range 12) 1302 | -10/Materials | Discovered new exit (range 15) 1307 | -10/Materials | Discovered new exit (range 7) 1350 | -10/Materials | Core integrity fell below 50% 1365 | -10/Materials | Core integrity fell below 20% 1373 | -10/Materials | Destroyed by S-10 Pest with Light Assault Rifle Last Messages --------------- 01222_ Acquired 22 matter. 01224_ U-05 Engineer lays Concrete. 01233_ K-01 Serf collects debris. 01249_ U-05 Engineer lays Concrete. 01297_ K-01 Serf cleans the Machine. 01302_ EXIT=FOUND 01305_ T-07 Excavator is excavating. 01307_ EXIT=FOUND 01309_ T-07 Excavator is excavating. 01310_ U-05 Engineer lays Concrete. 01328_ K-01 Serf cleans the Machine. 01347_ Lgt. Armor Plating destroyed. 01347_ Destroyed Lgt. Armor Plating. 01347_ S-10 Pest destroyed. 01349_ Grenade Launcher destroyed. 01349_ Destroyed Grenade Launcher. 01350_ The unstable cave ceiling collapses. 01350_ U-05 Engineer lays Concrete. 01366_ U-05 Engineer builds a Wall. 01367_ U-05 Engineer lays Concrete. Map ----- +----------------------------------------------------+ | ####### ##?????# """ """ """ """ | | ?????# ####### | | ###### | | + ### | | """ # ##### | | """ # ###/############# #?# # | | ="" ### ##%%= #???????#### ############# | | * !#?# % ## [ #??????????# #??????????# | | """*#?# ## #??????????# #??????????# | | """ #?# ##!!! #??????????# #?########?# ! | | """ #?# ##!! ############ #?# ! #?# | | #?#^^^##!! ## # ###"" ### | | ######?#^^^## ## # ^^##"Y ## | | ??????# # ## # ^##"" ##### ## | | ????? ########???"""""" + ## ##??##?? | | ???? #??????????"""""" # ## ##?????? | | ??? #??????????"""""" # ######+####????? | | ??##### #??????????"""""" # #????? | | ??????## ##??????????"""""" # < #????? | | ???????# #?????############## #????? | | ???????# #?????#"""""""?????#^ """ ######????? | | ???????# ??????#" !"! "????## """ #?????????? | | ???????# #T##+##" "##### """ ##????????? | | ??????? s #????????? | | ???????# < %u #????????? | | ???????? s @ #????????? | | ?????????????????# ### # ## ###????????? | | ?????????????????########??# ### ?????????? | | ???????????????????????????# #?# ????????? | | ???????????????????????????#######?### ##???????? | | ??????????????????????????????????????<##????????? | | ??????????????????????????????????????##?????????? | | ?????????????????????????????????????????????????? | | ?????????????????????????????????????????????????? | | ?????????????????????????????????????????????????? | | ?????????????????????????????????????????????????? | | ?????????????????????????????????????????????????? | | ?????????????????????????????????????????????????? | | ?????????????????????????????????????????????????? | | ?????????????????????????????????????????????????? | | ?????????????????????????????????????????????????? | | ?????????????????????????????????????????????????? | | ?????????????????????????????????????????????????? | | ?????????????????????????????????????????????????? | | ?????????????????????????????????????????????????? | | ?????????????????????????????????????????????????? | | ?????????????????????????????????????????????????? | | ?????????????????????????????????????????????????? | | ?????????????????????????????????????????????????? | | ?????????????????????????????????????????????????? | +----------------------------------------------------+ Best States ------------- Heat Dissipation 25 Energy Generation 10 Energy Capacity 250 Matter Stores 300 Matter Capacity 300 Sight Range 16 Terrain Scan Density 10 Armor Coverage 150 Evasion (%) 45 Recoil Reduction 2 Item Schematics ----------------- None Robot Schematics ------------------ None Fabricated ------------ Nothing Alien Tech Used ----------------- None Achievements -------------- None Challenges ------------ None Game ------ Seed MissileMetaLog Manual? 0 Play Time 00:11:33 Cumulative 31.4 hours Start 2024.07.08 @ 11:14:27 End 2024.07.08 @ 11:49:31 Sessions 3 Manual Loads 0 Difficulty Rogue Special Mode None Game No. 99 Rogue 99 Adventurer 0 Explorer 0 Win Type - Total 0 Types 0/0/0/0/0/0/0/0/0 Lore% 18 Gallery% 33 Achievement% 23 Wizard Run 0 Options --------- Layout 0 ASCII 0 Keyboard 0 Movement Arrows Keybinds 0 Fullscreen 1 Font 12/Smallcaps Map View 38x28 Zoom Use 99% Tactical HUD 1 Map Filters NONE Filters NONE Steam SD RUN: 00e26d29-2c07-4900-8fca-e43a370c7e4d